bitfinex-derivatives/quotes_ETHF0:USTF0_20241004
["timestamp","ask_amount","ask_price","bid_price","bid_amount"]
[1728007252718,4.1073,2380.5,2380.1,0.3862]
[1728007253020,0.42013,2380.3,2380.1,0.3862]
[1728007253318,0.42012,2380.4,2380.1,0.3862]
[1728007253516,4.1073,2380.5,2380.1,0.3862]
[1728007253718,0.42011,2380.4,2380.1,0.3862]
[1728007255319,0.42013,2380.4,2380.1,0.3862]
[1728007255710,0.42011,2380.4,2380.0,3.6289]
[1728007257628,0.42012,2380.4,2380.0,3.6289]
[1728007257831,4.1073,2380.5,2380.0,3.6289]
[1728007258027,0.42013,2380.3,2380.0,3.6289]
[1728007258529,0.42012,2380.4,2380.0,3.6289]
[1728007258723,4.1073,2380.5,2380.0,3.6289]
[1728007259030,0.42013,2380.3,2380.0,3.6289]
[1728007259243,4.1073,2380.5,2380.0,3.6289]
[1728007259622,0.42012,2380.4,2380.0,3.6289]
[1728007260124,0.42011,2380.4,2380.0,3.6289]
[1728007260316,0.42014,2380.3,2380.0,3.6289]
[1728007260513,0.42014,2380.3,2379.9,0.39]
[1728007260514,3.28,2380.1,2379.7,3.2078]
[1728007260722,3.28,2380.1,2379.4,4.0293]
[1728007260723,4.1096,2380.0,2379.4,4.0293]
[1728007261019,4.1096,2380.0,2379.4,3.2078]
[1728007261020,0.4202,2379.9,2379.4,3.2078]
[1728007261328,0.42027,2379.5,2379.1,3.2078]
[1728007261532,3.28,2379.2,2379.1,3.2078]
[1728007261831,3.28,2379.2,2378.7,5.28483016]
[1728007262022,0.42036,2379.0,2378.7,5.28483016]
[1728007262328,0.398,2379.1,2378.7,5.28483016]
[1728007262527,0.0652766,2379.0,2378.7,5.28483016]
[1728007263041,0.0652721,2378.9,2378.7,5.28483016]
[1728007263228,0.398,2379.1,2378.7,5.28483016]
[1728007263527,0.06527054,2379.0,2378.7,5.28483016]
[1728007264231,0.48564054,2379.0,2378.5,6.4878]
[1728007264523,6.8858,2379.1,2378.6,3.28]
[1728007264524,0.06527054,2378.9,2378.6,3.28]
[1728007264829,0.06527054,2378.8,2378.6,3.70043]
[1728007265022,4.1051,2379.4,2378.7,0.4204]
[1728007265220,1.94926871,2379.3,2378.9,3.28]
[1728007265524,0.06526871,2379.2,2379.0,0.8037]
[1728007266228,0.06526871,2379.2,2379.1,4.2032]
[1728007266535,0.06526786,2379.2,2379.1,4.2032]
[1728007267516,3.76561028,2379.2,2378.6,3.6902]
[1728007267723,0.06527028,2379.1,2378.7,0.4119]
[1728007268326,0.42037,2379.0,2378.7,0.4119]
[1728007268534,0.48566028,2378.9,2378.7,0.4119]
[1728007268822,3.6903,2379.0,2378.5,3.2078]
[1728007268823,0.06527544,2378.8,2378.5,3.2078]
[1728007269027,0.06527544,2378.7,2378.5,3.6197]
[1728007269231,4.11067,2379.0,2378.5,3.6197]
[1728007269727,3.6903,2379.0,2378.5,3.6197]
[1728007269930,0.42039,2378.9,2378.5,3.6197]
[1728007270228,4.11066,2379.0,2378.5,3.6197]
[1728007270829,0.42038,2378.9,2378.5,3.6197]
[1728007271418,3.6903,2379.0,2378.5,3.6197]
[1728007271627,4.11067,2379.0,2378.5,3.6197]
[1728007271932,0.42038,2378.9,2378.5,3.6197]
[1728007272330,0.4103,2379.0,2378.5,6.8997]
[1728007273319,0.83066,2379.0,2378.5,6.8997]
[1728007273533,0.42038,2378.9,2378.5,6.8997]
[1728007274529,0.83067,2379.0,2378.5,6.8997]
[1728007275423,0.42038,2378.9,2378.5,6.8997]
[1728007275729,0.42033,2379.2,2378.7,3.28]
[1728007275928,0.42033,2379.2,2378.8,0.4227]
[1728007276132,0.42033,2379.2,2378.9,0.3956]
[1728007276322,2.2777,2379.3,2378.9,0.7955]
[1728007276527,3.28,2379.2,2378.5,6.4878]
[1728007276728,0.42039,2378.9,2378.6,0.7955]
[1728007276921,3.6792,2379.2,2378.6,0.7955]
[1728007277228,0.4204,2378.8,2378.6,0.7955]
[1728007277623,3.28,2379.1,2378.6,0.7955]
[1728007277926,0.42039,2378.9,2378.6,0.7955]
[1728007278181,0.3992,2379.2,2378.6,4.0755]
[1728007278316,0.42036,2379.0,2378.6,4.0755]
[1728007278519,0.3992,2379.2,2378.6,4.4832]
[1728007278829,0.42037,2379.0,2378.6,4.4832]
[1728007279019,0.3992,2379.2,2378.6,4.4832]
[1728007279223,0.42038,2378.9,2378.6,4.4832]
[1728007279621,0.3992,2379.2,2378.8,6.4878]
[1728007279822,0.847,2379.4,2379.0,3.28]
[1728007280019,0.847,2379.4,2379.1,0.8172]
[1728007280020,0.4203,2379.4,2379.1,0.8172]
[1728007280418,3.62808,2379.5,2379.1,0.8172]
[1728007280723,3.62808,2379.5,2379.1,4.4327]
[1728007280919,0.4139,2379.7,2379.3,3.28]
[1728007281117,2.2871,2380.0,2379.4,3.2078]
[1728007281427,2.2871,2380.0,2379.4,3.62809]
[1728007281428,0.4202,2379.9,2379.4,3.62809]
[1728007281620,0.4202,2379.9,2379.5,0.3998]
[1728007281909,0.4202,2379.9,2379.6,0.4139]
[1728007282106,0.42024,2379.8,2379.6,0.4139]
[1728007282413,2.701,2380.0,2379.6,0.4139]
[1728007282414,0.42024,2379.7,2379.6,0.4139]
[1728007282798,5.981,2380.0,2379.5,0.3998]
[1728007283097,0.42025,2379.6,2379.5,0.3998]
[1728007283301,0.42029,2379.4,2379.3,0.4139]
[1728007283498,3.6977,2379.5,2379.0,3.622]
[1728007283702,0.42033,2379.2,2379.0,4.0193]
[1728007284407,0.42031,2379.3,2379.0,4.0193]
[1728007284710,0.42031,2379.3,2379.0,0.3973]
[1728007284711,0.42034,2379.1,2379.0,0.3973]
[1728007285305,0.42036,2379.0,2378.7,3.622]
[1728007285604,3.28,2379.3,2378.7,4.0193]
[1728007285605,0.42034,2379.1,2378.7,4.0193]
[1728007285808,0.42036,2379.0,2378.7,4.0193]
[1728007286000,0.42038,2378.9,2378.7,4.0193]
[1728007286208,3.28,2379.1,2378.7,4.0193]
[1728007286510,0.42037,2379.0,2378.7,4.0193]
[1728007287304,3.28,2378.9,2378.4,3.2078]
[1728007287501,1.24299,2378.9,2378.4,4.04625]
[1728007288314,1.43962,2379.2,2378.7,3.2078]
[1728007288315,0.3888,2379.2,2378.7,3.2078]
[1728007288602,0.42033,2379.2,2378.8,0.4044]
[1728007288806,0.42033,2379.2,2378.9,0.418]
[1728007289002,1.879,2379.3,2378.9,0.418]
[1728007289706,0.8496,2379.4,2378.9,0.418]
[1728007290306,0.8496,2379.4,2379.0,6.4878]
[1728007290511,1.879,2379.5,2379.0,6.90816]
[1728007290808,1.879,2379.7,2379.3,3.2078]
[1728007291106,0.8461,2379.8,2379.4,4.0843]
[1728007291502,0.8461,2379.8,2379.4,0.8043]
[1728007292099,1.26632,2379.8,2379.4,0.8043]
[1728007292314,0.06525074,2379.7,2379.4,0.8043]
[1728007293205,0.4144,2380.1,2379.4,1.22458]
[1728007293406,0.06524714,2380.0,2379.4,1.63388]
[1728007293805,0.48543714,2380.0,2379.4,1.63388]
[1728007294009,0.48543714,2380.0,2379.4,1.2136]
[1728007294010,0.06524714,2379.9,2379.4,1.2136]
[1728007294404,0.06524714,2379.8,2379.4,1.2136]
[1728007294610,0.42022,2379.9,2379.4,1.2136]
[1728007294811,0.48546597,2379.8,2379.4,1.2136]
[1728007295011,0.42022,2379.8,2379.4,1.2136]
[1728007295205,2.2934,2380.1,2379.4,0.8043]
[1728007295404,0.42028,2379.5,2379.3,3.2078]
[1728007295614,0.42028,2379.5,2379.0,4.05496]
[1728007295908,4.04,2380.0,2379.1,0.42034]
[1728007296113,0.42025,2379.7,2379.1,0.42034]
[1728007296307,0.06525445,2379.6,2379.1,0.42034]
[1728007296610,0.48551445,2379.6,2379.0,4.05495]
[1728007296809,0.42026,2379.6,2379.0,4.05495]
[1728007297319,0.42022,2379.9,2379.3,3.2078]
[1728007297518,0.06524784,2379.8,2379.6,3.2078]
[1728007297813,0.42018,2380.1,2379.7,0.836]
[1728007298015,5.9009,2380.2,2379.7,0.836]
[1728007298016,0.06524387,2380.0,2379.7,0.836]
[1728007298216,0.06524387,2379.9,2379.7,0.836]
[1728007298418,0.42018,2380.1,2379.7,0.836]
[1728007298918,0.06524029,2380.0,2379.7,0.836]
[1728007299510,2.6931,2380.2,2379.7,0.836]
[1728007299511,0.8141,2380.2,2379.7,1.25622]
[1728007299706,1.879,2380.4,2379.7,1.25622]
[1728007299907,0.42012,2380.4,2379.9,3.2078]
[1728007300108,0.42016,2380.2,2379.9,3.2078]
[1728007301512,5.8951,2380.5,2379.9,3.2078]
[1728007301711,0.42018,2380.1,2379.9,3.2078]
[1728007304612,0.42016,2380.2,2379.9,3.2078]
[1728007305117,4.0161,2380.5,2379.9,3.2078]
[1728007305317,4.0161,2380.5,2380.0,0.42018]
[1728007305318,1.22841,2380.5,2380.0,0.42018]
[1728007305618,1.22841,2380.5,2379.9,3.62799]
[1728007306114,1.22841,2380.5,2380.0,0.42018]
[1728007306320,1.22841,2380.5,2379.9,3.62799]
[1728007309214,1.22841,2380.5,2379.9,3.628]
[1728007310717,1.22841,2380.5,2379.9,3.2078]
[1728007311516,0.42011,2380.4,2379.9,3.6035]
[1728007311720,4.0883,2380.5,2379.9,3.6035]
[1728007312118,3.28,2380.3,2379.9,3.2078]
[1728007312424,3.70015,2380.3,2379.9,3.2078]
[1728007312625,0.42015,2380.2,2379.9,3.2078]
[1728007314224,3.28,2380.3,2379.9,3.2078]
[1728007314422,0.42018,2380.0,2379.7,0.836]
[1728007314823,3.6931,2380.1,2379.7,0.836]
[1728007315024,0.82799,2380.0,2379.7,0.836]
[1728007315220,0.4078,2380.0,2379.7,0.836]
[1728007316030,0.4202,2379.9,2379.7,0.836]
[1728007316630,0.4078,2380.0,2379.7,0.836]
[1728007316825,0.82799,2380.0,2379.7,0.836]
[1728007317621,0.4202,2379.9,2379.7,0.836]
[1728007317824,0.4131,2380.1,2379.7,0.836]
[1728007318029,3.28,2380.2,2379.7,0.836]
[1728007318231,4.0909,2380.4,2379.7,4.116]
[1728007318529,0.42019,2380.0,2379.7,0.836]
[1728007318925,0.42024,2379.7,2379.6,3.2078]
[1728007319120,0.42024,2379.7,2379.3,3.62811]
[1728007319325,0.42023,2379.8,2379.3,6.90809]
[1728007319527,1.23732,2379.9,2379.4,0.42028]
[1728007320428,0.8171,2379.9,2379.6,3.62805]
[1728007320733,0.81787,2380.1,2379.7,4.0883]
[1728007321130,0.8104,2380.1,2379.7,4.50853]
[1728007321333,0.42014,2380.3,2379.9,3.2078]
[1728007321635,0.42011,2380.4,2380.0,0.42018]
[1728007321833,0.0652332,2380.3,2379.9,6.90799]
[1728007322034,0.42011,2380.4,2379.9,6.90799]
[1728007322232,0.06522989,2380.3,2379.9,6.90799]
[1728007322628,0.42011,2380.4,2379.9,6.90799]
[1728007322832,0.06523012,2380.2,2379.9,6.90799]
[1728007323031,0.42011,2380.4,2379.9,6.90799]
[1728007323234,0.06522967,2380.3,2379.9,6.90799]
[1728007324841,0.48536967,2380.3,2379.9,6.4878]
[1728007325132,0.06522967,2380.2,2379.9,6.4878]
[1728007325338,1.24001,2380.5,2379.9,6.90799]
[1728007325539,0.06522914,2380.4,2380.0,0.42018]
[1728007325931,0.06522914,2380.4,2380.1,0.3966]
[1728007326133,1.24,2380.5,2380.2,0.4021]
[1728007326435,0.06522905,2380.4,2380.2,0.4021]
[1728007328436,0.06522905,2380.4,2380.1,0.3966]
[1728007328437,0.42014,2380.3,2379.8,0.4044]
[1728007328638,3.76538905,2380.2,2379.7,1.23193]
[1728007328835,3.28,2380.2,2379.9,3.2078]
[1728007329041,3.70012,2380.4,2379.9,3.62799]
[1728007329237,0.06522991,2380.3,2379.9,3.2078]
[1728007329437,3.70012,2380.4,2380.0,0.42018]
[1728007329641,0.06522989,2380.3,2380.0,0.42018]
[1728007329841,0.42013,2380.3,2379.9,3.628]
[1728007330241,3.70012,2380.4,2379.9,3.628]
[1728007330436,0.42016,2380.2,2379.9,3.2078]
[1728007330636,3.28,2380.4,2379.9,3.2078]
[1728007331240,0.42014,2380.3,2379.9,3.2078]
[1728007331541,0.8199,2380.5,2380.0,0.42017]
[1728007331744,0.42013,2380.4,2380.1,0.4053]
[1728007332142,0.8199,2380.5,2380.1,0.4053]
[1728007332343,1.24001,2380.5,2380.1,0.82547]
[1728007332539,1.24001,2380.5,2380.1,0.4053]
[1728007333342,0.42011,2380.4,2380.1,0.4053]
[1728007333541,1.24001,2380.5,2380.1,0.4053]
[1728007333945,0.8199,2380.5,2380.2,3.2078]
[1728007334143,0.8199,2380.5,2380.2,3.6032]
[1728007334746,1.24,2380.5,2380.2,3.6032]
[1728007335349,0.42012,2380.4,2380.2,3.6032]
[1728007335540,1.24,2380.5,2380.2,3.6032]
[1728007336350,1.24,2380.5,2380.2,3.2078]
[1728007336351,3.28,2380.4,2380.2,3.2078]
[1728007336549,3.70013,2380.4,2380.2,3.2078]
[1728007336852,3.28,2380.4,2380.2,3.2078]
[1728007337549,3.70012,2380.4,2380.2,3.2078]
[1728007338456,0.8199,2380.5,2380.2,3.2078]
[1728007339355,0.8199,2380.5,2380.3,0.8149]
[1728007340753,0.8199,2380.5,2380.3,0.3954]
[1728007341763,0.8199,2380.5,2380.2,3.2078]
[1728007341962,4.0999,2380.5,2380.2,3.2078]
[1728007342152,0.42012,2380.4,2380.2,3.2078]
[1728007342661,4.0999,2380.5,2380.2,3.2078]
[1728007342851,0.42012,2380.4,2380.2,3.2078]
[1728007343353,4.52,2380.5,2380.2,3.2078]
[1728007343555,0.42018,2380.0,2379.9,3.2078]
[1728007343754,3.70018,2380.0,2379.9,3.2078]
[1728007343960,12.5574,2380.0,2379.3,3.2078]
[1728007344161,3.70023,2379.8,2379.3,3.5949]
[1728007344553,3.28,2379.8,2379.3,4.4144]
[1728007344958,0.0652506,2379.7,2379.3,4.4144]
[1728007345161,0.0652506,2379.7,2379.4,3.28]
[1728007345357,0.3912,2379.9,2379.6,3.2078]
[1728007345557,3.70014,2380.3,2379.8,0.42022]
[1728007345759,0.45643962,2380.2,2379.8,0.42022]
[1728007345960,0.06523962,2380.1,2379.8,0.4063]
[1728007346460,0.06523689,2380.0,2379.8,0.4063]
[1728007346765,0.3912,2380.2,2379.8,0.82652]
[1728007346963,0.06523589,2380.1,2379.8,0.82652]
[1728007348088,0.06523589,2380.1,2379.8,0.4063]
[1728007348281,0.06523589,2380.1,2379.8,0.82652]
[1728007348684,0.06523589,2380.1,2379.8,0.4063]
[1728007349088,0.84448,2380.6,2380.0,3.28]
[1728007349280,0.48532614,2380.5,2380.1,0.4036]
[1728007349477,0.06522614,2380.4,2380.1,0.4036]
[1728007349721,0.06522614,2380.4,2380.1,0.82376]
[1728007349882,0.84449,2380.6,2380.1,0.82376]
[1728007350083,0.06522558,2380.5,2380.2,3.2078]
[1728007350492,0.4201,2380.5,2380.2,3.2078]
[1728007350688,0.0652259,2380.4,2380.2,3.2078]
[1728007351593,0.4244,2380.6,2380.2,3.2078]
[1728007351594,0.4201,2380.5,2380.2,3.2078]
[1728007351798,0.06522613,2380.4,2380.2,3.2078]
[1728007352100,0.4244,2380.6,2380.3,3.28]
[1728007352300,10.513,2381.1,2380.5,6.4878]
[1728007352496,10.513,2381.1,2380.6,0.4038]
[1728007352694,0.42003,2380.9,2380.6,0.4038]
[1728007353000,0.4189,2380.8,2380.6,0.4038]
[1728007353208,13.793,2381.1,2380.6,0.4038]
[1728007353500,0.4021,2380.9,2380.6,0.4038]
[1728007354991,0.4189,2381.0,2380.7,0.42006]
[1728007355188,0.4189,2381.0,2380.6,0.4038]
[1728007355497,0.4189,2381.0,2380.6,0.82387]
[1728007355792,0.4189,2381.0,2380.6,0.4038]
[1728007355989,0.4189,2381.0,2380.7,0.42006]
[1728007356194,0.4189,2381.0,2380.8,0.4225]
[1728007363867,0.42003,2380.9,2380.8,0.4225]
[1728007364066,4.11892,2381.0,2380.6,0.4038]
[1728007364672,0.42003,2380.9,2380.6,0.4038]
[1728007365275,4.11892,2381.0,2380.6,0.4038]
[1728007367877,12.7814,2381.1,2380.8,3.2078]
[1728007368083,11.33839,2381.1,2380.8,3.2078]
[1728007369780,11.3384,2381.1,2380.8,3.2078]
[1728007373187,0.8254,2381.1,2380.8,3.2078]
[1728007375308,0.06520704,2381.0,2380.8,3.2078]
[1728007377309,0.48521704,2381.0,2380.8,3.2078]
[1728007377512,0.06520704,2380.9,2380.8,3.2078]
[1728007378113,0.06520704,2381.0,2380.8,3.2078]
[1728007378309,0.06520704,2380.9,2380.8,3.2078]
[1728007378521,0.06520704,2381.0,2380.8,3.2078]
[1728007378726,0.06520704,2380.9,2380.8,3.2078]
[1728007378916,0.06520704,2381.0,2380.8,3.2078]
[1728007379320,0.8254,2381.1,2380.8,3.2078]
[1728007379622,0.06520834,2381.0,2380.8,3.2078]
[1728007381619,7.54520834,2381.0,2380.8,3.2078]
[1728007381814,0.48523834,2380.9,2380.8,3.2078]
[1728007382009,7.48,2381.0,2380.8,3.2078]
[1728007382722,7.90001,2381.0,2380.8,3.2078]
[1728007382945,7.48,2381.0,2380.8,3.2078]
[1728007383121,7.90002,2381.0,2380.8,3.2078]
[1728007383315,2.2684,2381.1,2380.8,3.2078]
[1728007383620,2.6884,2381.1,2380.8,3.2078]
[1728007384117,0.42001,2381.0,2380.8,3.2078]
[1728007384522,2.2684,2381.1,2380.8,3.2078]
[1728007384720,3.2078,2381.5,2381.1,0.41999]
[1728007384916,50.83822306,2382.3,2381.2,0.4162]
[1728007384917,4.4191,2381.8,2381.2,0.4162]
[1728007385117,0.41994,2381.4,2381.0,0.4185]
[1728007385319,3.28,2381.5,2381.0,0.8347]
[1728007385519,0.4062,2381.3,2381.0,0.8347]
[1728007385712,0.80588,2381.2,2380.8,3.2078]
[1728007385914,3.28,2380.9,2380.8,3.2078]
[1728007386314,1.863,2381.0,2380.8,3.2078]
[1728007386820,2.28299,2381.1,2380.8,3.2078]
[1728007387016,3.08808,2381.2,2380.8,3.2078]
[1728007387317,1.863,2381.2,2380.8,3.2078]
[1728007388016,1.863,2381.2,2380.8,3.62784]
[1728007388522,5.96917,2381.3,2380.8,3.62784]
[1728007388925,5.96917,2381.3,2380.8,3.2078]
[1728007389516,5.96917,2381.3,2380.8,3.62784]
[1728007390130,0.41997,2381.2,2380.8,3.2078]
[1728007390454,5.5492,2381.3,2380.8,3.2078]
[1728007390619,5.96916,2381.3,2380.8,3.2078]
[1728007391025,0.41997,2381.2,2380.8,3.2078]
[1728007391230,3.2078,2381.8,2380.9,3.28]
[1728007391428,2.34809938,2381.7,2381.1,3.62777]
[1728007391619,0.41993,2381.5,2381.2,0.3938]
[1728007392023,0.4156,2381.4,2381.2,0.3938]
[1728007392514,0.41995,2381.3,2381.1,3.6014]
[1728007392710,0.4158,2381.3,2381.1,3.6014]
[1728007392912,0.4158,2381.3,2381.1,3.2078]
[1728007393123,0.4158,2381.3,2381.1,3.6348]
[1728007393823,0.83576,2381.3,2381.1,3.6348]
[1728007394129,0.42,2381.1,2380.8,3.6348]
[1728007394333,0.42003,2380.9,2380.8,3.2078]
[1728007394517,0.83561,2381.0,2380.8,3.2078]
[1728007394716,2.69861,2381.0,2380.8,3.2078]
[1728007395021,2.2786,2381.0,2380.8,3.2078]
[1728007395206,2.69862,2381.0,2380.8,3.2078]
[1728007395611,2.2786,2381.0,2380.8,3.2078]
[1728007396115,0.4211,2381.2,2380.8,3.2078]
[1728007396116,3.7011,2381.2,2380.8,3.2078]
[1728007396421,5.5641,2381.2,2380.9,0.4061]
[1728007396807,3.28,2381.2,2380.9,0.4061]
[1728007397109,3.69998,2381.2,2380.9,0.4061]
[1728007397293,3.48366,2381.3,2380.9,0.4061]
[1728007397487,0.06521082,2381.2,2380.9,0.4061]
[1728007398200,3.48366,2381.3,2380.9,0.4061]
[1728007398502,0.48518992,2381.2,2380.9,0.4061]
[1728007398695,0.41998,2381.2,2380.9,0.4061]
[1728007398998,0.41999,2381.1,2380.9,0.4061]
[1728007399500,0.41999,2381.1,2380.8,3.2078]
[1728007399898,3.28,2381.2,2380.8,3.2078]
[1728007400202,0.42003,2380.9,2380.8,3.2078]
[1728007400498,3.70002,2381.0,2380.8,3.2078]
[1728007401200,4.2,2380.9,2380.4,0.396]
[1728007401401,0.42011,2380.4,2380.3,3.2078]
[1728007401600,0.42014,2380.3,2380.1,3.2078]
[1728007401796,3.28,2380.2,2380.1,3.2078]
[1728007401995,3.28,2380.2,2380.0,0.4195]
[1728007402498,7.4816,2380.1,2379.5,3.2078]
[1728007402696,0.42021,2379.9,2379.7,3.2078]
[1728007402905,3.28,2379.8,2379.6,0.412]
[1728007403105,1.857,2379.9,2379.6,0.412]
[1728007403396,2.27721,2379.9,2379.6,0.412]
[1728007403700,0.4084,2379.8,2379.6,0.412]
[1728007404912,3.2078,2380.6,2379.7,7.4824]
[1728007405202,3.2078,2380.6,2380.3,3.62792]
[1728007405405,3.2078,2380.6,2380.4,0.8303]
[1728007406309,6.4878,2380.6,2380.4,0.8303]
[1728007407706,6.90788,2380.6,2380.4,0.8303]
[1728007408001,7.8784,2380.5,2379.8,0.4257]
[1728007408200,3.70015,2380.2,2379.9,0.3958]
[1728007408597,0.3976,2380.1,2379.8,0.4269]
[1728007408806,0.8076,2380.1,2379.8,0.4269]
[1728007409006,3.28,2380.0,2379.8,0.4269]
[1728007409407,5.137,2380.0,2379.7,3.2078]
[1728007409704,0.42022,2379.8,2379.6,0.3958]
[1728007410099,5.5594,2380.0,2379.5,0.4185]
[1728007410100,3.28,2379.9,2379.5,0.4185]
[1728007410303,0.81014,2379.7,2379.5,0.4185]
[1728007410698,0.3899,2379.7,2379.5,0.4185]
[1728007411600,4.2024,2379.6,2379.2,0.8288]
[1728007411804,3.28,2379.4,2378.8,0.8411]
[1728007412010,3.28,2379.4,2378.9,0.4047]
[1728007412204,3.28,2379.2,2378.8,0.4241]
[1728007412505,3.28,2379.2,2378.7,3.2078]
[1728007412506,0.42035,2379.1,2378.7,3.2078]
[1728007412707,3.34527066,2379.0,2378.6,0.8288]
[1728007412901,0.42044,2378.6,2378.3,3.2078]
[1728007413099,3.28,2378.8,2378.0,6.90833]
[1728007413304,3.28,2378.5,2378.0,3.62833]
[1728007413706,3.28,2378.5,2378.0,3.2078]
[1728007413900,3.28,2378.5,2378.0,3.62833]
[1728007414312,3.70045,2378.5,2378.0,3.62833]
[1728007414507,0.42044,2378.6,2378.0,6.90833]
[1728007414700,0.06529046,2378.5,2378.0,6.4878]
[1728007415104,0.80759,2378.9,2378.4,3.2078]
[1728007415304,0.06528371,2378.8,2378.4,3.62827]
[1728007415509,0.06528371,2378.8,2378.4,4.04927]
[1728007415714,0.06528371,2378.8,2378.4,4.46827]
[1728007416110,0.06528371,2378.8,2378.7,3.28]
[1728007416313,10.509,2379.4,2378.7,6.4878]
[1728007416506,10.509,2379.4,2379.0,3.28]
[1728007416507,0.06527404,2379.3,2379.0,3.28]
[1728007416706,0.06527404,2379.3,2379.1,0.3939]
[1728007417312,0.06527404,2379.3,2379.0,0.419]
[1728007418115,12.367,2379.4,2379.0,0.419]
[1728007418304,0.06526487,2379.3,2379.0,0.419]
[1728007418814,10.509,2379.4,2379.0,0.419]
[1728007419010,0.06526318,2379.3,2379.0,0.419]
[1728007419212,10.509,2379.4,2379.0,0.419]
[1728007419408,0.06526321,2379.3,2379.0,0.419]
[1728007420820,10.509,2379.4,2379.0,0.419]
[1728007421317,10.9293,2379.4,2379.0,0.419]
[1728007421713,10.509,2379.4,2379.0,0.419]
[1728007422717,10.509,2379.4,2379.1,3.2078]
[1728007423122,10.509,2379.4,2379.2,0.4184]
[1728007423522,0.3951,2379.5,2379.2,0.4184]
[1728007424707,0.3951,2379.5,2379.0,0.419]
[1728007424708,0.42031,2379.3,2379.0,0.419]
[1728007425318,0.42033,2379.2,2379.0,0.419]
[1728007425616,0.3951,2379.5,2378.8,3.2078]
[1728007425819,0.82385,2379.1,2378.8,3.2078]
[1728007426016,0.4035,2379.1,2378.8,3.2078]
[1728007426211,0.42037,2379.0,2378.8,3.2078]
[1728007427117,0.4035,2379.1,2378.7,0.4184]
[1728007427324,0.4035,2379.1,2378.9,3.2078]
[1728007427523,0.82385,2379.1,2378.9,3.2078]
[1728007428423,0.4035,2379.1,2378.9,3.2078]
[1728007428721,0.42036,2379.0,2378.9,3.2078]
[1728007429022,0.82385,2379.1,2378.9,3.2078]
[1728007430413,0.4035,2379.1,2378.9,3.2078]
[1728007430617,0.42036,2379.0,2378.9,3.2078]
[1728007431119,0.4035,2379.1,2378.9,3.2078]
[1728007431319,0.3955,2379.6,2378.9,3.2078]
[1728007431526,0.3887,2379.4,2378.9,3.2078]
[1728007431719,0.42032,2379.3,2378.9,3.2078]
[1728007433039,0.42032,2379.3,2379.0,3.2078]
[1728007434831,0.3887,2379.4,2379.0,3.2078]
[1728007435034,0.42034,2379.1,2379.0,3.2078]
[1728007435429,0.42039,2378.9,2378.7,3.6262]
[1728007436143,0.3912,2379.0,2378.7,3.6262]
[1728007436454,0.42038,2378.9,2378.7,3.6262]
[1728007437641,0.81157,2379.0,2378.7,3.6262]
[1728007437845,0.42039,2378.9,2378.7,3.6262]
[1728007438143,0.3912,2379.0,2378.4,3.2078]
[1728007438144,0.42041,2378.7,2378.4,3.2078]
[1728007438448,0.42041,2378.7,2378.4,3.6167]
[1728007438749,0.8466,2378.8,2378.4,4.03716]
[1728007439139,0.4262,2378.8,2378.4,3.6167]
[1728007439338,0.42042,2378.7,2378.4,3.6167]
[1728007439736,0.8466,2378.8,2378.4,3.6167]
[1728007439936,0.8466,2378.8,2378.4,4.03716]
[1728007440244,0.4262,2378.8,2378.5,0.42044]
[1728007440448,0.4262,2378.8,2378.4,4.03715]
[1728007440647,0.4262,2378.8,2378.5,0.42045]
[1728007442146,0.42044,2378.6,2378.4,3.6167]
[1728007442449,3.28,2378.6,2378.4,3.2078]
[1728007442652,0.80995,2378.5,2378.4,3.2078]
[1728007443045,0.42048,2378.4,2378.0,3.2078]
[1728007443242,3.70052,2378.2,2378.0,3.2078]
[1728007443556,0.42053,2378.1,2377.9,0.4014]
[1728007443753,0.4026,2378.1,2377.9,0.4014]
[1728007444145,3.28,2378.0,2377.7,3.2078]
[1728007444353,3.28,2377.8,2377.5,11.28029804]
[1728007444853,3.28,2377.8,2377.5,0.8224]
[1728007446349,3.28,2377.8,2377.7,3.2078]
[1728007447150,7.90617,2377.8,2377.7,3.2078]
[1728007447448,8.29877,2377.8,2377.7,3.2078]
[1728007447951,7.8782,2377.8,2377.7,3.2078]
[1728007448153,0.3926,2377.8,2377.7,3.2078]
[1728007448549,4.5982,2377.8,2377.7,3.2078]
[1728007448848,0.3926,2377.8,2377.7,3.2078]
[1728007450063,0.42067,2377.3,2376.9,0.212]
[1728007450352,3.28,2377.0,2376.5,0.832]
[1728007450545,3.28,2377.0,2376.7,0.42076]
[1728007450744,3.2078,2377.1,2376.7,0.42076]
[1728007450950,3.2078,2377.1,2376.6,3.5941]
[1728007451151,3.2078,2377.1,2376.7,0.42077]
[1728007451353,3.2078,2377.1,2376.6,4.01488]
[1728007451554,6.4878,2377.1,2376.7,0.42077]
[1728007451749,6.4878,2377.1,2376.7,0.42076]
[1728007452144,6.4878,2377.1,2376.6,4.01488]
[1728007452348,6.4878,2377.1,2376.6,3.5941]
[1728007452650,6.4878,2377.1,2376.7,0.42076]
[1728007453349,6.4878,2377.1,2376.6,3.5941]
[1728007453551,3.2078,2377.1,2376.7,0.42077]
[1728007453946,3.2078,2377.1,2376.6,4.01488]
[1728007455054,3.2078,2377.1,2376.7,0.42076]
[1728007455651,5.0628,2377.5,2377.0,0.42071]
[1728007455851,5.0628,2377.5,2377.1,1.2385]